[Event "European Womens-ch 2025"]
[Site "Rhodes"]
[Date "2025.04.07"]
[Round "7.16"]
[White "Mgeladze, Kesaria"]
[Black "Mammadova, Gulnar"]
[Result "0-1"]
[Annotator "RC"]
[ECO "B11"]
[WhiteElo "2200"]
[BlackElo "2342"]
[PlyCount "40"]
[EventDate "2025.03.29"]
[EventType "swiss"]
[EventCountry "GRE"]
[SourceTitle "playchess.com"]
[Source "ChessBase"]
[SourceQuality "1"]
[TimeControl "40/5400+30:1800+30"]

1. e4 {[%emt 0:00:03]} c6 {[%emt 0:00:15]} 2. Nf3 {[%emt 0:00:16]} d5 {[%emt 0:00:08]} 3. Nc3 {[%emt 0:00:05]} Bg4 {[%emt 0:00:16]} 4. h3 {[%emt 0:00:07]} Bxf3 {[%emt 0:00:04]} 5. Qxf3 {[%emt 0:00:05]} e6 {[%emt 0:00:32]} 6. g3 {[%emt 0:00:08]} d4 {[%emt 0:01:36]} 7. Nb1 {[%emt 0:04:06]} h5 {[%emt 0:00:12]} 8. h4 {[%emt 0:17:27]} Bb4 {[%emt 0:00:16]} 9. a3 {[%emt 0:03:06]} Ba5 {[%emt 0:00:11]} 10. Bg2 {[%emt 0:13:45]} Nd7 {[%emt 0:02:20]} 11. O-O {[%emt 0:01:51]} Ne5 {[%emt 0:05:18]} 12. Qd1 {[%emt 0:14:47]} d3 {[%emt 0:00:49]} 13. b4 {[%emt 0:00:25]} Bb6 {[%emt 0:08:33]} 14. Bb2 {[%emt 0:02:21]} Qd6 {[%emt 0:02:34]} 15. cxd3 {[%emt 0:19:11]} Nxd3 {[%emt 0:02:36]} 16. Bxg7 {[%emt 0:01:22]} Qxg3 {[%emt 0:07:07]} 17. Bxh8 {[%emt 0:01:13]} Nxf2 {[%emt 0:02:47]} 18. Rxf2 {[%emt 0:00:59]} Qxf2+ {[%emt 0:00:04]} 19. Kh2 {[%emt 0:00:05]} Qf4+ {[%emt 0:02:31]} 20. Kh3 {[%emt 0:00:07]} Bf2 {[%emt 0:00:25]} 0-1

[Event "European Womens-ch 2025"]
[Site "Rhodes"]
[Date "2025.04.07"]
[Round "7.17"]
[White "Khachatryan, Anna"]
[Black "Savina, Anastasia"]
[Result "1/2-1/2"]
[Annotator "RC"]
[ECO "E91"]
[WhiteElo "2091"]
[BlackElo "2331"]
[PlyCount "91"]
[EventDate "2025.03.29"]
[EventType "swiss"]
[EventCountry "GRE"]
[SourceTitle "playchess.com"]
[Source "ChessBase"]
[SourceQuality "1"]
[TimeControl "40/5400+30:1800+30"]

1. d4 {[%emt 0:00:03]} Nf6 {[%emt 0:01:17]} 2. c4 {[%emt 0:00:23]} g6 {[%emt 0:00:05]} 3. Nc3 {[%emt 0:00:15]} Bg7 {[%emt 0:00:09]} 4. e4 {[%emt 0:00:06]} d6 {[%emt 0:00:05]} 5. Nf3 {[%emt 0:00:36]} O-O {[%emt 0:00:09]} 6. Be2 {[%emt 0:00:24]} e5 {[%emt 0:00:06]} 7. O-O {[%emt 0:00:24]} h6 {[%emt 0:00:41]} 8. dxe5 {[%emt 0:04:26]} dxe5 {[%emt 0:00:08]} 9. Qxd8 {[%emt 0:06:19]} Rxd8 {[%emt 0:00:06]} 10. Nxe5 {[%emt 0:01:11]} Nxe4 {[%emt 0:03:46]} 11. Nxe4 {[%emt 0:00:08]} Bxe5 {[%emt 0:00:06]} 12. Bxh6 {[%emt 0:00:29]} Nc6 {[%emt 0:12:38]} 13. Rad1 {[%emt 0:15:30]} Bxb2 {[%emt 0:16:26]} 14. Bg5 {[%emt 0:11:25]} Rxd1 {[%emt 0:15:51]} 15. Rxd1 {[%emt 0:00:43]} Bf5 {[%emt 0:01:44]} 16. Bf6 {[%emt 0:18:40]} Be5 {[%emt 0:19:54]} 17. Bxe5 {[%emt 0:02:30]} Nxe5 {[%emt 0:00:35]} 18. Nf6+ {[%emt 0:06:38]} Kg7 {[%emt 0:01:53]} 19. Nd5 {[%emt 0:00:01]} Rd8 {[%emt 0:07:28]} 20. Nxc7 {[%emt 0:07:24]} Rxd1+ {[%emt 0:00:17]} 21. Bxd1 {[%emt 0:00:01]} Nxc4 {[%emt 0:00:09]} 22. Bb3 {[%emt 0:04:27]} Nd6 {[%emt 0:00:49]} 23. f3 {[%emt 0:01:00]} Bd7 {[%emt 0:07:52]} 24. Kf2 {[%emt 0:00:46]} a5 {[%emt 0:00:55]} 25. Bd5 {[%emt 0:04:59]} Kf6 {[%emt 0:02:49]} 26. Ke3 {[%emt 0:04:20]} Nf5+ {[%emt 0:03:33]} 27. Kd3 {[%emt 0:03:04]} Bc6 {[%emt 0:01:40]} 28. Bxc6 {[%emt 0:02:17]} bxc6 {[%emt 0:00:02]} 29. Ke4 {[%emt 0:00:54]} Ke7 {[%emt 0:00:48]} 30. g4 {[%emt 0:00:39]} Ng7 {[%emt 0:01:50]} 31. f4 {[%emt 0:03:57]} Kd6 {[%emt 0:01:28]} 32. Na8 {[%emt 0:01:40]} f5+ {[%emt 0:00:19]} 33. gxf5 {[%emt 0:00:00]} gxf5+ {[%emt 0:00:06]} 34. Ke3 {[%emt 0:00:05]} Kc5 {[%emt 0:00:32]} 35. h4 {[%emt 0:00:26]} a4 {[%emt 0:00:44]} 36. a3 {[%emt 0:00:31]} Kc4 {[%emt 0:00:52]} 37. Nb6+ {[%emt 0:01:04]} Kb3 {[%emt 0:00:07]} 38. Kd4 {[%emt 0:00:18]} Kxa3 {[%emt 0:00:56]} 39. Kc5 {[%emt 0:00:28]} Kb3 {[%emt 0:00:32]} 40. Nxa4 {[%emt 0:00:00]} Kxa4 {[%emt 0:00:00]} 41. Kxc6 {[%emt 0:00:05]} Nh5 {[%emt 0:09:26]} 42. Kd5 {[%emt 0:03:47]} Kb5 {[%emt 0:02:15]} 43. Ke5 {[%emt 0:01:03]} Ng3 {[%emt 0:00:04]} 44. h5 {[%emt 0:00:49]} Nxh5 {[%emt 0:00:05]} 45. Kxf5 {[%emt 0:00:03]} Nxf4 {[%emt 0:00:04]} 46. Kxf4 {[%emt 0:00:02]} 1/2-1/2

[Event "European Womens-ch 2025"]
[Site "Rhodes"]
[Date "2025.04.07"]
[Round "7.18"]
[White "Smietanska, Wiktoria"]
[Black "Wagner, Dinara"]
[Result "1-0"]
[Annotator "RC"]
[ECO "B90"]
[WhiteElo "2254"]
[BlackElo "2440"]
[PlyCount "103"]
[EventDate "2025.03.29"]
[EventType "swiss"]
[EventCountry "GRE"]
[SourceTitle "playchess.com"]
[Source "ChessBase"]
[SourceQuality "1"]
[TimeControl "40/5400+30:1800+30"]

1. e4 {[%emt 0:00:03]} c5 {[%emt 0:00:06]} 2. Nf3 {[%emt 0:00:09]} d6 {[%emt 0:00:04]} 3. d4 {[%emt 0:00:09]} cxd4 {[%emt 0:00:04]} 4. Nxd4 {[%emt 0:00:11]} Nf6 {[%emt 0:00:05]} 5. Nc3 {[%emt 0:00:09]} a6 {[%emt 0:00:03]} 6. Be3 {[%emt 0:00:17]} e5 {[%emt 0:00:06]} 7. Nb3 {[%emt 0:00:08]} Be6 {[%emt 0:00:13]} 8. f3 {[%emt 0:00:13]} Nbd7 {[%emt 0:00:11]} 9. Qd2 {[%emt 0:00:16]} Qc7 {[%emt 0:00:29]} 10. g4 {[%emt 0:03:52]} h6 {[%emt 0:00:21]} 11. O-O-O {[%emt 0:01:44]} b5 {[%emt 0:01:10]} 12. Kb1 {[%emt 0:03:19]} Nb6 {[%emt 0:11:07]} 13. Qf2 {[%emt 0:04:53]} Rb8 {[%emt 0:00:43]} 14. g5 {[%emt 0:10:43]} hxg5 {[%emt 0:02:29]} 15. Bxg5 {[%emt 0:00:11]} b4 {[%emt 0:07:48]} 16. Ne2 {[%emt 0:09:39]} a5 {[%emt 0:07:50]} 17. Ng3 {[%emt 0:05:15]} a4 {[%emt 0:02:56]} 18. Bb5+ {[%emt 0:02:35]} Nfd7 {[%emt 0:11:07]} 19. Nc1 {[%emt 0:02:24]} a3 {[%emt 0:16:57]} 20. b3 {[%emt 0:09:35]} d5 {[%emt 0:00:23]} 21. Nd3 {[%emt 0:04:40]} d4 {[%emt 0:08:15]} 22. Bd2 {[%emt 0:04:39]} Nc8 {[%emt 0:03:52]} 23. Bxd7+ {[%emt 0:03:24]} Bxd7 {[%emt 0:02:31]} 24. f4 {[%emt 0:00:21]} f6 {[%emt 0:00:11]} 25. fxe5 {[%emt 0:03:34]} fxe5 {[%emt 0:00:02]} 26. Nf5 {[%emt 0:02:24]} Ne7 {[%emt 0:08:55]} 27. Nxe7 {[%emt 0:10:53]} Bxe7 {[%emt 0:00:08]} 28. Qg3 {[%emt 0:00:57]} Bf6 {[%emt 0:02:29]} 29. Qg6+ {[%emt 0:02:29]} Kd8 {[%emt 0:00:58]} 30. Nxb4 {[%emt 0:03:24]} Be8 {[%emt 0:03:34]} 31. Qg3 {[%emt 0:01:24]} Qd7 {[%emt 0:00:44]} 32. Nd5 {[%emt 0:01:55]} Qh3 {[%emt 0:01:05]} 33. Ba5+ {[%emt 0:02:59]} Kc8 {[%emt 0:01:04]} 34. Qf2 {[%emt 0:02:03]} Qh4 {[%emt 0:01:01]} 35. Qe2 {[%emt 0:03:51]} Bb5 {[%emt 0:00:10]} 36. c4 {[%emt 0:02:02]} Bc6 {[%emt 0:03:34]} 37. Be1 {[%emt 0:01:27]} Qh5 {[%emt 0:01:29]} 38. Qd3 {[%emt 0:00:15]} Qh3 {[%emt 0:01:15]} 39. Bg3 {[%emt 0:00:14]} Qg2 {[%emt 0:00:03]} 40. Qc2 {[%emt 0:00:00]} Qxc2+ {[%emt 0:00:00]} 41. Kxc2 {[%emt 0:01:01]} Kd7 {[%emt 0:03:00]} 42. Rdf1 {[%emt 0:02:40]} Rh6 {[%emt 0:03:43]} 43. Kd3 {[%emt 0:02:07]} Rg6 {[%emt 0:01:36]} 44. Rf5 {[%emt 0:03:19]} Ke6 {[%emt 0:11:18]} 45. Rh5 {[%emt 0:03:03]} Rg5 {[%emt 0:10:20]} 46. Nxf6 {[%emt 0:04:42]} gxf6 {[%emt 0:05:35]} 47. Rxg5 {[%emt 0:00:07]} fxg5 {[%emt 0:00:02]} 48. Rf1 {[%emt 0:00:28]} Re8 {[%emt 0:01:51]} 49. Rf5 {[%emt 0:00:18]} Kd6 {[%emt 0:00:04]} 50. Rxg5 {[%emt 0:02:06]} Rf8 {[%emt 0:00:51]} 51. Rxe5 {[%emt 0:01:21]} Kd7 {[%emt 0:00:35]} 52. Kxd4 {[%emt 0:00:53]} 1-0

[Event "European Womens-ch 2025"]
[Site "Rhodes"]
[Date "2025.04.07"]
[Round "7.19"]
[White "Schneider, Jana"]
[Black "Kulon, Klaudia"]
[Result "1/2-1/2"]
[Annotator "RC"]
[ECO "B12"]
[WhiteElo "2251"]
[BlackElo "2401"]
[PlyCount "100"]
[EventDate "2025.03.29"]
[EventType "swiss"]
[EventCountry "GRE"]
[SourceTitle "playchess.com"]
[Source "ChessBase"]
[SourceQuality "1"]
[TimeControl "40/5400+30:1800+30"]

1. e4 {[%emt 0:00:05]} c6 {[%emt 0:00:05]} 2. d4 {[%emt 0:04:56]} d5 {[%emt 0:01:17]} 3. e5 {[%emt 0:06:35]} Bf5 {[%emt 0:00:09]} 4. h4 {[%emt 0:01:42]} h5 {[%emt 0:00:16]} 5. Bd3 {[%emt 0:00:40]} Bxd3 {[%emt 0:00:05]} 6. Qxd3 {[%emt 0:00:05]} Qa5+ {[%emt 0:00:10]} 7. Nd2 {[%emt 0:00:18]} e6 {[%emt 0:00:18]} 8. Ngf3 {[%emt 0:01:30]} Ne7 {[%emt 0:00:15]} 9. O-O {[%emt 0:01:37]} Nf5 {[%emt 0:00:07]} 10. c4 {[%emt 0:01:23]} Qa6 {[%emt 0:02:17]} 11. Rd1 {[%emt 0:05:05]} c5 {[%emt 0:12:44]} 12. dxc5 {[%emt 0:04:27]} Nc6 {[%emt 0:03:45]} 13. Ne4 {[%emt 0:03:03]} Nb4 {[%emt 0:06:06]} 14. Qd2 {[%emt 0:06:43]} Qxc4 {[%emt 0:00:15]} 15. Nd6+ {[%emt 0:05:01]} Bxd6 {[%emt 0:05:54]} 16. cxd6 {[%emt 0:00:19]} Nc6 {[%emt 0:13:28]} 17. Qd3 {[%emt 0:19:42]} Qxd3 {[%emt 0:10:55]} 18. Rxd3 {[%emt 0:00:08]} Kd7 {[%emt 0:00:36]} 19. Bf4 {[%emt 0:08:25]} Rhc8 {[%emt 0:06:04]} 20. Rc1 {[%emt 0:03:33]} f6 {[%emt 0:06:35]} 21. Rb3 {[%emt 0:03:11]} Na5 {[%emt 0:02:36]} 22. Rbc3 {[%emt 0:01:00]} Rc6 {[%emt 0:01:55]} 23. Ne1 {[%emt 0:11:00]} Rac8 {[%emt 0:08:16]} 24. Nd3 {[%emt 0:01:06]} Rxc3 {[%emt 0:00:06]} 25. Rxc3 {[%emt 0:00:10]} Rxc3 {[%emt 0:00:57]} 26. bxc3 {[%emt 0:00:03]} b6 {[%emt 0:00:07]} 27. Bh2 {[%emt 0:01:25]} Nxh4 {[%emt 0:02:19]} 28. exf6 {[%emt 0:05:30]} gxf6 {[%emt 0:00:01]} 29. Nf4 {[%emt 0:00:07]} e5 {[%emt 0:05:16]} 30. Nxd5 {[%emt 0:00:56]} Ke6 {[%emt 0:00:05]} 31. Nc7+ {[%emt 0:01:38]} Kxd6 {[%emt 0:01:31]} 32. Nb5+ {[%emt 0:00:02]} Kc5 {[%emt 0:00:19]} 33. Nxa7 {[%emt 0:00:04]} Nf5 {[%emt 0:01:15]} 34. a4 {[%emt 0:02:16]} Nd6 {[%emt 0:03:37]} 35. f3 {[%emt 0:03:22]} Nac4 {[%emt 0:01:24]} 36. Kf1 {[%emt 0:00:38]} Ne3+ {[%emt 0:03:10]} 37. Ke2 {[%emt 0:00:07]} Nxg2 {[%emt 0:02:52]} 38. Bg1+ {[%emt 0:00:01]} Kd5 {[%emt 0:00:32]} 39. Bxb6 {[%emt 0:00:14]} h4 {[%emt 0:01:02]} 40. Kf1 {[%emt 0:00:00]} Nf4 {[%emt 0:00:00]} 41. Be3 {[%emt 0:12:17]} Ng6 {[%emt 0:06:00]} 42. Nb5 {[%emt 0:02:32]} Nc4 {[%emt 0:00:20]} 43. Bc1 {[%emt 0:00:46]} f5 {[%emt 0:02:31]} 44. Kg2 {[%emt 0:01:12]} e4 {[%emt 0:01:43]} 45. fxe4+ {[%emt 0:02:39]} Kxe4 {[%emt 0:00:06]} 46. Nd4 {[%emt 0:01:18]} f4 {[%emt 0:00:40]} 47. Kh3 {[%emt 0:03:11]} f3 {[%emt 0:10:06]} 48. Nxf3 {[%emt 0:01:25]} Kxf3 {[%emt 0:00:04]} 49. Bg5 {[%emt 0:00:08]} Nce5 {[%emt 0:00:43]} 50. a5 {[%emt 0:04:39]} Nc6 {[%emt 0:01:07]} 1/2-1/2

[Event "European Womens-ch 2025"]
[Site "Rhodes"]
[Date "2025.04.07"]
[Round "7.20"]
[White "Guichard, Pauline"]
[Black "Ibrahimova, Sabina"]
[Result "1/2-1/2"]
[Annotator "RC"]
[ECO "D50"]
[WhiteElo "2355"]
[BlackElo "2199"]
[PlyCount "128"]
[EventDate "2025.03.29"]
[EventType "swiss"]
[EventCountry "GRE"]
[SourceTitle "playchess.com"]
[Source "ChessBase"]
[SourceQuality "1"]
[TimeControl "40/5400+30:1800+30"]

1. d4 {[%emt 0:00:02]} d5 {[%emt 0:02:21]} 2. c4 {[%emt 0:00:13]} e6 {[%emt 0:00:09]} 3. Nc3 {[%emt 0:00:22]} c5 {[%emt 0:00:36]} 4. Nf3 {[%emt 0:01:56]} Nf6 {[%emt 0:00:40]} 5. cxd5 {[%emt 0:02:15]} cxd4 {[%emt 0:00:29]} 6. Qxd4 {[%emt 0:02:40]} exd5 {[%emt 0:00:14]} 7. Bg5 {[%emt 0:00:13]} Be7 {[%emt 0:00:36]} 8. e3 {[%emt 0:01:04]} O-O {[%emt 0:02:25]} 9. Be2 {[%emt 0:02:42]} Nc6 {[%emt 0:00:19]} 10. Qd1 {[%emt 0:03:58]} h6 {[%emt 0:05:38]} 11. Bh4 {[%emt 0:07:53]} Be6 {[%emt 0:01:30]} 12. O-O {[%emt 0:00:17]} Qb6 {[%emt 0:06:55]} 13. Bxf6 {[%emt 0:00:51]} Bxf6 {[%emt 0:00:59]} 14. Nxd5 {[%emt 0:00:13]} Bxd5 {[%emt 0:01:33]} 15. Qxd5 {[%emt 0:00:08]} Qxb2 {[%emt 0:02:06]} 16. Bc4 {[%emt 0:08:18]} Rad8 {[%emt 0:04:57]} 17. Qf5 {[%emt 0:05:28]} Qc3 {[%emt 0:10:49]} 18. Rac1 {[%emt 0:05:58]} Qa5 {[%emt 0:03:11]} 19. Qb1 {[%emt 0:06:17]} Rb8 {[%emt 0:25:45]} 20. Rfd1 {[%emt 0:05:14]} Rfd8 {[%emt 0:04:01]} 21. Rxd8+ {[%emt 0:07:43]} Qxd8 {[%emt 0:00:38]} 22. Qb3 {[%emt 0:01:27]} Qe7 {[%emt 0:01:32]} 23. Bd5 {[%emt 0:00:39]} Ne5 {[%emt 0:06:00]} 24. Nxe5 {[%emt 0:09:25]} Bxe5 {[%emt 0:00:30]} 25. a4 {[%emt 0:00:09]} b6 {[%emt 0:04:52]} 26. Rc6 {[%emt 0:04:19]} Rd8 {[%emt 0:00:53]} 27. g3 {[%emt 0:01:41]} Bd6 {[%emt 0:02:04]} 28. e4 {[%emt 0:03:53]} g6 {[%emt 0:05:10]} 29. Qc3 {[%emt 0:11:37]} Kh7 {[%emt 0:01:12]} 30. Kg2 {[%emt 0:00:52]} h5 {[%emt 0:03:43]} 31. h4 {[%emt 0:01:30]} Be5 {[%emt 0:02:28]} 32. Qc4 {[%emt 0:01:49]} Kg7 {[%emt 0:00:10]} 33. f4 {[%emt 0:01:51]} Bd6 {[%emt 0:00:03]} 34. Qd4+ {[%emt 0:01:15]} Kh7 {[%emt 0:02:01]} 35. Qc4 {[%emt 0:02:17]} Kg7 {[%emt 0:00:26]} 36. Qd4+ {[%emt 0:00:50]} Kh7 {[%emt 0:00:09]} 37. Qf2 {[%emt 0:00:58]} Bc5 {[%emt 0:00:18]} 38. Qa2 {[%emt 0:00:20]} Kg7 {[%emt 0:01:33]} 39. Qb2+ {[%emt 0:00:13]} Kh7 {[%emt 0:00:06]} 40. Rf6 {[%emt 0:00:00]} Rxd5 {[%emt 0:00:00]} 41. exd5 {[%emt 0:03:43]} Qe4+ {[%emt 0:01:40]} 42. Kh2 {[%emt 0:00:22]} Bd4 {[%emt 0:01:11]} 43. Rxf7+ {[%emt 0:01:45]} Kg8 {[%emt 0:00:36]} 44. Re7 {[%emt 0:00:13]} Qxe7 {[%emt 0:01:01]} 45. Qxd4 {[%emt 0:00:05]} Qe2+ {[%emt 0:01:23]} 46. Kg1 {[%emt 0:03:55]} Qe1+ {[%emt 0:09:07]} 47. Kg2 {[%emt 0:00:08]} Qe2+ {[%emt 0:00:07]} 48. Qf2 {[%emt 0:00:40]} Qe4+ {[%emt 0:04:06]} 49. Qf3 {[%emt 0:00:46]} Qc2+ {[%emt 0:03:31]} 50. Kh1 {[%emt 0:07:14]} Qc1+ {[%emt 0:01:15]} 51. Kh2 {[%emt 0:00:58]} Qc2+ {[%emt 0:00:06]} 52. Qg2 {[%emt 0:02:19]} Qxa4 {[%emt 0:00:10]} 53. d6 {[%emt 0:04:21]} Qd7 {[%emt 0:03:10]} 54. Qd5+ {[%emt 0:04:21]} Kg7 {[%emt 0:00:34]} 55. Kg2 {[%emt 0:01:04]} Kf6 {[%emt 0:02:07]} 56. Kf2 {[%emt 0:02:19]} b5 {[%emt 0:03:01]} 57. Qd4+ {[%emt 0:02:51]} Kf7 {[%emt 0:01:15]} 58. Qd5+ {[%emt 0:02:31]} Kf6 {[%emt 0:00:51]} 59. Qd4+ {[%emt 0:00:55]} Kf7 {[%emt 0:00:12]} 60. Qd5+ {[%emt 0:00:35]} Kf6 {[%emt 0:00:11]} 61. Qg5+ {[%emt 0:00:31]} Kf7 {[%emt 0:00:22]} 62. Qd5+ {[%emt 0:00:23]} Kf6 {[%emt 0:00:13]} 63. Qd4+ {[%emt 0:00:35]} Kf7 {[%emt 0:00:11]} 64. Qd5+ {[%emt 0:00:33]} Kf6 {[%emt 0:00:06]} 1/2-1/2

[Event "European Womens-ch 2025"]
[Site "Rhodes"]
[Date "2025.04.07"]
[Round "7.21"]
[White "Jarocka, Liwia"]
[Black "Gaponenko, Inna"]
[Result "1-0"]
[Annotator "RC"]
[ECO "B03"]
[WhiteElo "2231"]
[BlackElo "2349"]
[PlyCount "173"]
[EventDate "2025.03.29"]
[EventType "swiss"]
[EventCountry "GRE"]
[SourceTitle "playchess.com"]
[Source "ChessBase"]
[SourceQuality "1"]
[TimeControl "40/5400+30:1800+30"]

1. e4 {[%emt 0:00:02]} Nf6 {[%emt 0:00:05]} 2. e5 {[%emt 0:00:11]} Nd5 {[%emt 0:00:05]} 3. d4 {[%emt 0:00:05]} d6 {[%emt 0:00:04]} 4. c4 {[%emt 0:00:23]} Nb6 {[%emt 0:00:05]} 5. exd6 {[%emt 0:00:11]} exd6 {[%emt 0:00:30]} 6. h3 {[%emt 0:00:45]} Be7 {[%emt 0:01:52]} 7. Nf3 {[%emt 0:00:32]} Bf5 {[%emt 0:21:57]} 8. Bd3 {[%emt 0:04:00]} Bxd3 {[%emt 0:06:26]} 9. Qxd3 {[%emt 0:01:00]} Nc6 {[%emt 0:00:02]} 10. O-O {[%emt 0:12:14]} O-O {[%emt 0:02:20]} 11. b3 {[%emt 0:08:35]} Bf6 {[%emt 0:18:24]} 12. Nc3 {[%emt 0:02:05]} d5 {[%emt 0:13:52]} 13. c5 {[%emt 0:01:30]} Nc8 {[%emt 0:00:04]} 14. Bf4 {[%emt 0:02:54]} N8e7 {[%emt 0:02:36]} 15. Rad1 {[%emt 0:07:25]} Ng6 {[%emt 0:14:12]} 16. Bh2 {[%emt 0:03:56]} Re8 {[%emt 0:00:40]} 17. b4 {[%emt 0:05:45]} a6 {[%emt 0:01:56]} 18. Qb1 {[%emt 0:10:00]} Qd7 {[%emt 0:06:12]} 19. b5 {[%emt 0:04:27]} Na5 {[%emt 0:03:07]} 20. Qb4 {[%emt 0:00:57]} axb5 {[%emt 0:00:17]} 21. Nxb5 {[%emt 0:00:27]} Rec8 {[%emt 0:04:42]} 22. Rfe1 {[%emt 0:00:57]} Nc4 {[%emt 0:01:01]} 23. Nc3 {[%emt 0:00:25]} c6 {[%emt 0:00:52]} 24. a4 {[%emt 0:06:10]} Bd8 {[%emt 0:00:33]} 25. Qb3 {[%emt 0:06:05]} Ba5 {[%emt 0:00:05]} 26. Ra1 {[%emt 0:01:01]} Bxc3 {[%emt 0:00:30]} 27. Qxc3 {[%emt 0:00:01]} Ra6 {[%emt 0:00:51]} 28. Reb1 {[%emt 0:01:52]} Rca8 {[%emt 0:00:01]} 29. Rb4 {[%emt 0:00:52]} Nf8 {[%emt 0:00:52]} 30. Rab1 {[%emt 0:00:18]} R8a7 {[%emt 0:00:43]} 31. Bb8 {[%emt 0:00:22]} Ra8 {[%emt 0:00:03]} 32. Rxb7 {[%emt 0:00:35]} Qf5 {[%emt 0:00:09]} 33. Ne5 {[%emt 0:00:38]} Rxa4 {[%emt 0:00:18]} 34. Nxc6 {[%emt 0:00:32]} Qg5 {[%emt 0:01:18]} 35. Qg3 {[%emt 0:02:20]} Qxg3 {[%emt 0:00:42]} 36. Bxg3 {[%emt 0:00:07]} h5 {[%emt 0:00:31]} 37. Ne7+ {[%emt 0:00:37]} Kh7 {[%emt 0:00:01]} 38. Nxd5 {[%emt 0:00:35]} Nd2 {[%emt 0:00:15]} 39. Re1 {[%emt 0:05:58]} h4 {[%emt 0:01:15]} 40. Bxh4 {[%emt 0:00:00]} Rxd4 {[%emt 0:00:00]} 41. Nb6 {[%emt 0:04:20]} Ra5 {[%emt 0:17:35]} 42. Bg5 {[%emt 0:03:02]} Ne4 {[%emt 0:09:23]} 43. Be3 {[%emt 0:00:44]} Nxc5 {[%emt 0:00:10]} 44. Rxf7 {[%emt 0:00:44]} Rd8 {[%emt 0:00:07]} 45. Bxc5 {[%emt 0:06:32]} Rxc5 {[%emt 0:00:05]} 46. Rxf8 {[%emt 0:00:15]} Rxf8 {[%emt 0:00:03]} 47. Nd7 {[%emt 0:00:04]} Rcf5 {[%emt 0:00:17]} 48. Nxf8+ {[%emt 0:00:04]} Rxf8 {[%emt 0:00:03]} 49. Re6 {[%emt 0:00:18]} Rf4 {[%emt 0:00:26]} 50. g4 {[%emt 0:01:01]} Kg8 {[%emt 0:00:08]} 51. Kg2 {[%emt 0:00:07]} Kf7 {[%emt 0:00:05]} 52. Rb6 {[%emt 0:00:17]} Ra4 {[%emt 0:00:04]} 53. Kg3 {[%emt 0:00:05]} Ra3+ {[%emt 0:01:26]} 54. f3 {[%emt 0:00:05]} g5 {[%emt 0:04:00]} 55. Rh6 {[%emt 0:00:07]} Kg7 {[%emt 0:01:11]} 56. Rh5 {[%emt 0:00:04]} Kg6 {[%emt 0:00:02]} 57. h4 {[%emt 0:00:07]} gxh4+ {[%emt 0:00:02]} 58. Rxh4 {[%emt 0:00:04]} Rb3 {[%emt 0:00:02]} 59. Rh8 {[%emt 0:00:10]} Ra3 {[%emt 0:00:06]} 60. Rb8 {[%emt 0:00:08]} Rc3 {[%emt 0:00:35]} 61. Rb6+ {[%emt 0:00:07]} Kg5 {[%emt 0:00:09]} 62. Rb5+ {[%emt 0:01:31]} Kg6 {[%emt 0:00:04]} 63. Re5 {[%emt 0:00:12]} Kf6 {[%emt 0:01:56]} 64. Re8 {[%emt 0:00:07]} Kg5 {[%emt 0:00:34]} 65. Rd8 {[%emt 0:04:14]} Ra3 {[%emt 0:00:19]} 66. Rd5+ {[%emt 0:00:22]} Kg6 {[%emt 0:01:18]} 67. Kf4 {[%emt 0:00:22]} Ra4+ {[%emt 0:01:08]} 68. Ke3 {[%emt 0:00:09]} Ra3+ {[%emt 0:01:23]} 69. Rd3 {[%emt 0:01:18]} Ra4 {[%emt 0:00:16]} 70. f4 {[%emt 0:00:07]} Ra6 {[%emt 0:00:03]} 71. Kf3 {[%emt 0:00:50]} Rb6 {[%emt 0:00:19]} 72. Kg3 {[%emt 0:00:13]} Ra6 {[%emt 0:00:31]} 73. Kh4 {[%emt 0:00:08]} Rb6 {[%emt 0:02:16]} 74. Rd5 {[%emt 0:00:11]} Ra6 {[%emt 0:00:17]} 75. f5+ {[%emt 0:00:29]} Kg7 {[%emt 0:00:08]} 76. Kg5 {[%emt 0:00:14]} Ra7 {[%emt 0:01:55]} 77. Rd6 {[%emt 0:00:05]} Rb7 {[%emt 0:00:18]} 78. Kh5 {[%emt 0:00:06]} Rb1 {[%emt 0:00:38]} 79. Rg6+ {[%emt 0:01:11]} Kh7 {[%emt 0:00:35]} 80. Kg5 {[%emt 0:00:57]} Rb7 {[%emt 0:00:17]} 81. Rh6+ {[%emt 0:00:16]} Kg7 {[%emt 0:00:30]} 82. f6+ {[%emt 0:00:48]} Kg8 {[%emt 0:00:04]} 83. Rh2 {[%emt 0:00:39]} Rb4 {[%emt 0:00:46]} 84. Ra2 {[%emt 0:00:56]} Rb7 {[%emt 0:00:55]} 85. Re2 {[%emt 0:01:09]} Rb5+ {[%emt 0:00:30]} 86. Kg6 {[%emt 0:00:17]} Kf8 {[%emt 0:00:03]} 87. Rh2 {[%emt 0:00:08]} 1-0